lending/lending_fUSD_20240128
["ID","MTS","AMOUNT","RATE_DAILY","PERIOD"]
[312928993,1706463044978,-500.0,0.00027388,2]
[312928994,1706463044988,-229.78667657,0.00052054,31]
[312928995,1706463044998,-500.0,0.00052054,7]
[312928996,1706463045007,-522.09196903,0.00052054,31]
[312928997,1706463045017,-500.0,0.00052054,31]
[312928998,1706463045027,-445.55758603,0.00052054,7]
[312928999,1706463045393,-36.7896659,0.00052054,7]
[312929000,1706463045434,-17.65274807,0.00052054,7]
[312929001,1706463045444,-500.0,0.00052054,31]
[312929002,1706463045453,-500.0,0.00052054,31]
[312929003,1706463045463,-500.0,0.00052054,31]
[312929004,1706463045473,-83.64796038,0.00052054,31]
[312929005,1706463045484,-416.35203962,0.00052054,31]
[312929006,1706463045494,-542.65,0.00052054,31]
[312929007,1706463045504,-58.31701167,0.00052054,120]
[312929009,1706463045515,-271.79643259,0.00052054,120]
[312929011,1706463045525,-500.0,0.00052054,31]
[312929012,1706463045534,-2415.22,0.00052054,5]
[312929014,1706463045544,-500.0,0.00052054,31]
[312929017,1706463045554,-500.0,0.00052054,31]
[312929019,1706463045563,-500.0,0.00052054,10]
[312929021,1706463045574,-4090.1,0.00052054,31]
[312929022,1706463045583,-500.0,0.00052054,31]
[312929023,1706463045592,-500.0,0.00052054,31]
[312929024,1706463045602,-500.0,0.00052054,2]
[312929025,1706463045611,-500.0,0.00052054,31]
[312929026,1706463045621,-500.0,0.00052054,2]
[312929027,1706463045630,-500.0,0.00052054,31]
[312929029,1706463045642,-500.0,0.00052054,31]
[312929031,1706463045654,-500.0,0.00052054,2]
[312929033,1706463045666,-500.0,0.00052054,31]
[312929034,1706463045678,-496.75474017,0.00052055,2]
[312929035,1706463045689,-864.63315547,0.00052055,2]
[312929036,1706463045700,-965.8172249,0.0005224,4]
[312929037,1706463045712,-400.0,0.0005229,2]
[312929038,1706463045723,-224.0,0.0005229,2]
[312929039,1706463045734,-160.0,0.00052319,10]
[312929040,1706463045744,-665.51,0.00052328,2]
[312929041,1706463045754,-500.0,0.00052328,2]
[312929042,1706463045765,-500.0,0.00052328,20]
[312929043,1706463045776,-500.0,0.00052328,15]
[312929044,1706463045788,-1491.2,0.00052328,2]
[312929045,1706463045799,-1566.51,0.00052328,2]
[312929046,1706463045810,-500.0,0.00052328,2]
[312929047,1706463045820,-500.0,0.00052328,2]
[312929048,1706463045831,-928.12,0.00052328,2]
[312929049,1706463045844,-1000.0,0.00052328,2]
[312929051,1706463045859,-943.94,0.00052328,7]
[312929053,1706463045872,-1006.81,0.00052328,2]
[312929055,1706463045883,-1000.0,0.00052328,7]
[312929057,1706463045894,-1000.0,0.00052328,7]
[312929060,1706463045905,-500.0,0.00052328,31]
[312929062,1706463045916,-500.0,0.00052328,31]
[312929064,1706463045928,-1000.0,0.00052328,7]
[312929066,1706463045939,-534.81,0.00052328,31]
[312929068,1706463045949,-500.0,0.00052328,31]
[312929070,1706463045958,-500.0,0.00052328,31]
[312929072,1706463045968,-159.04034809,0.00052328,31]
[312929074,1706463045979,-508.60740043,0.00052328,31]
[312929077,1706463045990,-500.0,0.00052328,31]
[312929079,1706463046001,-500.0,0.00052328,31]
[312929081,1706463046012,-500.0,0.00052328,31]
[312929083,1706463046023,-500.0,0.00052328,31]
[312929085,1706463046033,-500.0,0.00052328,31]
[312929087,1706463046045,-500.0,0.00052328,31]
[312929089,1706463046055,-500.0,0.00052328,31]
[312929091,1706463046065,-500.0,0.00052328,31]
[312929094,1706463046077,-342.74017475,0.00052328,31]
[312929096,1706463046088,-500.0,0.00052328,31]
[312929098,1706463046099,-518.74023937,0.00052328,31]
[312929100,1706463046110,-500.0,0.00052328,31]
[312929102,1706463046121,-500.0,0.00052328,31]
[312929104,1706463046132,-890.64,0.00052328,2]
[312929106,1706463046142,-500.0,0.00052328,31]
[312929108,1706463046152,-1000.0,0.00052328,31]
[312929111,1706463046163,-500.0,0.00052328,31]
[312929113,1706463046173,-383.97960975,0.00052328,31]
[312929132,1706463046319,-116.02039025,0.00052328,31]
[312929134,1706463046330,-500.0,0.00052328,31]
[312929137,1706463046340,-500.0,0.00052328,31]
[312929139,1706463046351,-500.0,0.00052328,31]
[312929141,1706463046362,-500.0,0.00052328,31]
[312929143,1706463046373,-500.0,0.00052328,31]
[312929145,1706463046384,-160.0,0.00052328,10]
[312929147,1706463046395,-3178.15,0.00052328,5]
[312929148,1706463046406,-500.0,0.00052328,31]
[312929149,1706463046416,-500.0,0.00052328,31]
[312929151,1706463046427,-500.0,0.00052328,31]
[312929152,1706463046439,-500.0,0.00052328,31]
[312929153,1706463046450,-500.0,0.00052328,31]
[312929154,1706463046461,-1173.31,0.00052328,7]
[312929155,1706463046472,-506.23511801,0.00052328,31]
[312929156,1706463046484,-500.0,0.00052328,7]
[312929157,1706463046496,-500.0,0.00052328,31]
[312929158,1706463046506,-550.99564554,0.00052328,7]
[312929159,1706463046516,-500.0,0.00052328,31]
[312929160,1706463046525,-500.0,0.00052328,31]
[312929161,1706463046535,-500.0,0.00052328,31]
[312929162,1706463046545,-204.79010349,0.00052328,31]
[312929163,1706463046555,-542.65,0.00052328,31]
[312929164,1706463046565,-500.0,0.00052328,31]
[312929165,1706463046575,-2415.22,0.00052328,5]
[312929166,1706463046585,-500.0,0.00052328,31]
[312929167,1706463046596,-500.0,0.00052328,31]
[312929168,1706463046607,-535.23965237,0.00052328,10]
[312929169,1706463046617,-4090.1,0.00052328,31]
[312929170,1706463046627,-500.0,0.00052328,31]
[312929171,1706463046639,-500.0,0.00052328,31]
[312929172,1706463046649,-500.0,0.00052328,31]
[312929173,1706463046659,-500.0,0.00052328,2]
[312929174,1706463046671,-150.59362688,0.00052328,31]
[312929175,1706463046682,-500.0,0.00052328,31]
[312929176,1706463046693,-500.0,0.00052328,2]
[312929177,1706463046703,-500.0,0.00052328,31]
[312929178,1706463046713,-6862.32281519,0.00052351,2]
[312929179,1706463046723,-1000.0,0.00052379,4]
[312929180,1706463046733,-1000.0,0.00052471,45]
[312929181,1706463046742,-50000.0,0.00052485,45]
[312929182,1706463046753,-158.19916146,0.00052502,2]
[312929183,1706463046763,-197.2339496,0.0005255,2]
[312929184,1706463046774,-229.0,0.0005259,2]
[312929185,1706463046784,-1780.51,0.00052602,5]
[312929186,1706463046795,-665.51,0.00052602,2]
[312929187,1706463046807,-500.0,0.00052602,2]
[312929188,1706463046817,-500.0,0.00052602,20]
[312929189,1706463046827,-500.0,0.00052602,15]
[312929190,1706463046840,-1491.2,0.00052602,2]
[312929191,1706463046851,-1566.51,0.00052602,2]
[312929192,1706463046861,-500.0,0.00052602,2]
[312929193,1706463046872,-928.12,0.00052602,2]
[312929194,1706463046883,-1000.0,0.00052602,2]
[312929195,1706463046893,-943.94,0.00052602,7]
[312929196,1706463046904,-1006.81,0.00052602,2]
[312929197,1706463046914,-1000.0,0.00052602,7]
[312929198,1706463046927,-1000.0,0.00052602,7]
[312929199,1706463046937,-500.0,0.00052602,31]
[312929200,1706463046947,-196.02094999,0.00052602,31]
[312929201,1706463046957,-629.91376105,0.00052602,7]
[312929202,1706463046968,-534.81,0.00052602,31]
[312929203,1706463046978,-500.0,0.00052602,31]
[312929204,1706463046988,-168.25502598,0.00052602,31]
[312929205,1706463046999,-500.0,0.00052602,31]
[312929206,1706463047009,-500.0,0.00052602,31]
[312929207,1706463047019,-500.0,0.00052602,31]
[312929208,1706463047030,-500.0,0.00052602,31]
[312929209,1706463047040,-500.0,0.00052602,31]
[312929210,1706463047050,-500.0,0.00052602,31]
[312929211,1706463047061,-500.0,0.00052602,31]
[312929212,1706463047071,-500.0,0.00052602,31]
[312929213,1706463047082,-500.0,0.00052602,31]
[312929214,1706463047092,-500.0,0.00052602,31]
[312929215,1706463047103,-500.0,0.00052602,31]
[312929216,1706463047113,-890.64,0.00052602,2]
[312929217,1706463047123,-500.0,0.00052602,31]
[312929218,1706463047133,-1000.0,0.00052602,31]
[312929219,1706463047144,-500.0,0.00052602,31]
[312929220,1706463047154,-500.0,0.00052602,31]
[312929221,1706463047166,-500.0,0.00052602,31]
[312929222,1706463047177,-262.94391368,0.00052602,31]
[312929223,1706463047187,-500.0,0.00052602,31]
[312929224,1706463047197,-500.0,0.00052602,31]
[312929225,1706463047207,-387.95064546,0.00052602,31]
[312929226,1706463047217,-3178.15,0.00052602,5]
[312929227,1706463047227,-500.0,0.00052602,31]
[312929228,1706463047237,-500.0,0.00052602,31]
[312929229,1706463047247,-367.78647495,0.00052602,31]
[312929230,1706463047257,-500.0,0.00052602,31]
[312929231,1706463047267,-500.0,0.00052602,31]
[312929232,1706463047278,-1173.31,0.00052602,7]
[312929233,1706463047288,-500.0,0.00052602,7]
[312929234,1706463047298,-500.0,0.00052602,31]
[312929235,1706463047308,-500.0,0.00052602,31]
[312929236,1706463047318,-500.0,0.00052602,31]
[312929237,1706463047328,-500.0,0.00052602,31]
[312929238,1706463047339,-542.65,0.00052602,31]
[312929239,1706463047350,-500.0,0.00052602,31]
[312929240,1706463047362,-9280.0,0.00052602,7]
[312929241,1706463047374,-2415.22,0.00052602,5]
[312929242,1706463047383,-624.54045728,0.00052602,31]
[312929243,1706463047393,-500.0,0.00052602,31]
[312929244,1706463047403,-4090.1,0.00052602,31]
[312929245,1706463047413,-500.0,0.00052602,31]
[312929246,1706463047423,-500.0,0.00052602,31]
[312929247,1706463047433,-500.0,0.00052602,31]
[312929248,1706463047443,-158.85567205,0.00052602,2]
[312929249,1706463047453,-500.0,0.00052602,31]
[312929250,1706463047463,-500.0,0.00052602,2]
[312929251,1706463047473,-500.0,0.00052602,31]
[312929252,1706463047482,-79527.3206365,0.00052611,12]
[312929253,1706463047493,-50000.0,0.00052639,7]
[312929254,1706463047502,-1383.68889021,0.00052719,30]
[312929255,1706463047513,-264.0,0.0005279,2]
[312929256,1706463047522,-1882.166417,0.000528,31]
[312929257,1706463047532,-5800.0,0.00052859,7]
[312929258,1706463047542,-5800.0,0.00052867,7]
[312929259,1706463047551,-665.51,0.00052876,2]
[312929260,1706463047561,-500.0,0.00052876,2]
[312929261,1706463047570,-500.0,0.00052876,20]
[312929262,1706463047579,-500.0,0.00052876,15]
[312929263,1706463047589,-1491.2,0.00052876,2]
[312929264,1706463047599,-1566.51,0.00052876,2]
[312929265,1706463047608,-5800.0,0.00052876,7]
[312929266,1706463047618,-500.0,0.00052876,2]
[312929267,1706463047627,-928.12,0.00052876,2]
[312929268,1706463047637,-1000.0,0.00052876,2]
[312929269,1706463047646,-943.94,0.00052876,7]
[312929270,1706463047656,-1006.81,0.00052876,2]
[312929271,1706463047665,-1000.0,0.00052876,7]
[312929272,1706463047675,-1000.0,0.00052876,7]
[312929273,1706463047684,-500.0,0.00052876,31]
[312929274,1706463047694,-534.81,0.00052876,31]
[312929275,1706463047703,-628.86495103,0.00052876,31]
[312929276,1706463047712,-536.91695898,0.00052876,31]
[312929277,1706463047722,-500.0,0.00052876,31]
[312929278,1706463047731,-500.0,0.00052876,31]
[312929279,1706463047741,-500.0,0.00052876,31]
[312929280,1706463047750,-500.0,0.00052876,31]
[312929281,1706463047761,-611.84895117,0.00052876,31]
[312929282,1706463047770,-500.0,0.00052876,31]
[312929283,1706463047780,-354.36318239,0.00052876,31]
[312929284,1706463047789,-500.0,0.00052876,31]
[312929285,1706463047799,-500.0,0.00052876,31]
[312929286,1706463047809,-500.0,0.00052876,31]
[312929287,1706463047819,-890.64,0.00052876,2]
[312929288,1706463047829,-500.0,0.00052876,31]
[312929289,1706463047840,-1000.0,0.00052876,31]
[312929290,1706463047853,-500.0,0.00052876,31]
[312929291,1706463047864,-500.0,0.00052876,31]
[312929292,1706463047874,-500.0,0.00052876,31]
[312929293,1706463047884,-500.0,0.00052876,31]
[312929294,1706463047895,-500.0,0.00052876,31]
[312929295,1706463047905,-3178.15,0.00052876,5]
[312929296,1706463047915,-500.0,0.00052876,31]
[312929297,1706463047926,-500.0,0.00052876,31]
[312929298,1706463047936,-500.0,0.00052876,31]
[312929299,1706463047946,-500.0,0.00052876,31]
[312929300,1706463047956,-1173.31,0.00052876,7]
[312929301,1706463047966,-500.0,0.00052876,7]
[312929302,1706463047976,-500.0,0.00052876,31]
[312929303,1706463047985,-500.0,0.00052876,31]
[312929304,1706463047995,-500.0,0.00052876,31]
[312929305,1706463048004,-500.0,0.00052876,31]
[312929306,1706463048015,-542.65,0.00052876,31]
[312929307,1706463048025,-500.0,0.00052876,31]
[312929308,1706463048035,-2415.22,0.00052876,5]
[312929309,1706463048044,-500.0,0.00052876,31]
[312929310,1706463048053,-4090.1,0.00052876,31]
[312929311,1706463048063,-500.0,0.00052876,31]
[312929312,1706463048074,-293.60877231,0.00052876,31]
[312929313,1706463048084,-500.0,0.00052876,31]
[312929314,1706463048094,-500.0,0.00052876,31]
[312929315,1706463048338,-500.0,0.00052876,2]
[312929316,1706463048352,-500.0,0.00052876,31]
[312929317,1706463048366,-151.300332,0.000529,29]
[312929318,1706463048376,-79527.3206365,0.0005299,12]
[312929319,1706463048385,-246.0,0.0005299,2]
[312929320,1706463048394,-10332.12092163,0.00053,2]
[312929321,1706463048403,-150.0,0.00053,2]
[312929322,1706463048412,-72212.7027,0.00053,60]
[312929323,1706463048421,-150.0,0.00053,30]
[312929324,1706463048430,-800.0,0.00053013,10]
[312929325,1706463048440,-230.0,0.0005309,2]
[312929326,1706463048449,-267.15,0.00053117,2]
[312929327,1706463048458,-47289.50844554,0.0005314,12]
[312929328,1706463048471,-32237.81219096,0.0005314,12]
[312929329,1706463048481,-665.51,0.0005315,2]
[312929330,1706463048489,-500.0,0.0005315,2]
[312929331,1706463048499,-500.0,0.0005315,20]
[312929332,1706463048508,-500.0,0.0005315,15]
[312929333,1706463048517,-1491.2,0.0005315,2]
[312929334,1706463048526,-1566.51,0.0005315,2]
[312929335,1706463048536,-500.0,0.0005315,2]
[312929336,1706463048545,-928.12,0.0005315,2]
[312929337,1706463048555,-1000.0,0.0005315,2]
[312929338,1706463048564,-943.94,0.0005315,7]
[312929339,1706463048573,-1006.81,0.0005315,2]
[312929340,1706463048583,-1000.0,0.0005315,7]
[312929341,1706463048592,-1000.0,0.0005315,7]
[312929342,1706463048601,-500.0,0.0005315,31]
[312929343,1706463048610,-534.81,0.0005315,31]
[312929344,1706463048619,-214.00999631,0.0005315,31]
[312929345,1706463048628,-500.0,0.0005315,31]
[312929346,1706463048636,-500.0,0.0005315,31]
[312929347,1706463048646,-500.0,0.0005315,31]
[312929348,1706463048655,-500.0,0.0005315,31]
[312929349,1706463048663,-500.0,0.0005315,31]
[312929350,1706463048672,-500.0,0.0005315,31]
[312929351,1706463048681,-500.0,0.0005315,31]
[312929352,1706463048690,-890.64,0.0005315,2]
[312929353,1706463048699,-500.0,0.0005315,31]
[312929354,1706463048709,-731.76,0.0005315,31]
[312929355,1706463048718,-571.15,0.0005315,31]
[312929356,1706463048727,-500.0,0.0005315,31]
[312929357,1706463048736,-500.0,0.0005315,31]
[312929358,1706463048745,-610.63491884,0.0005315,31]
[312929359,1706463048754,-331.81287787,0.0005315,31]
[312929360,1706463048766,-3178.15,0.0005315,5]
[312929361,1706463048775,-500.0,0.0005315,31]
[312929362,1706463048785,-500.0,0.0005315,31]
[312929363,1706463048794,-395.64748164,0.0005315,31]
[312929364,1706463048804,-500.0,0.0005315,31]
[312929365,1706463048813,-1173.31,0.0005315,7]
[312929366,1706463048822,-500.0,0.0005315,7]
[312929367,1706463048831,-500.0,0.0005315,31]
[312929368,1706463048843,-500.0,0.0005315,31]
[312929369,1706463048854,-500.0,0.0005315,31]
[312929370,1706463048864,-500.0,0.0005315,31]
[312929371,1706463048873,-542.65,0.0005315,31]
[312929372,1706463048883,-500.0,0.0005315,31]
[312929373,1706463048893,-2415.22,0.0005315,5]
[312929374,1706463048902,-500.0,0.0005315,31]
[312929375,1706463048911,-4090.1,0.0005315,31]
[312929376,1706463048921,-500.0,0.0005315,31]
[312929377,1706463048931,-500.0,0.0005315,31]
[312929378,1706463048940,-500.0,0.0005315,31]
[312929379,1706463048950,-500.0,0.0005315,2]
[312929380,1706463048960,-500.0,0.0005315,31]
[312929381,1706463048969,-155.0,0.0005323,2]
[312929382,1706463048979,-150.0,0.00053254,7]
[312929383,1706463048988,-150.0,0.0005334,7]
[312929384,1706463048997,-150.0,0.00053347,7]
[312929385,1706463049007,-665.0,0.0005339,2]
[312929386,1706463049017,-329.0,0.0005339,2]
[312929387,1706463049027,-665.51,0.00053424,2]
[312929388,1706463049036,-500.0,0.00053424,2]
[312929389,1706463049045,-500.0,0.00053424,20]
[312929390,1706463049054,-500.0,0.00053424,15]
[312929391,1706463049063,-1491.2,0.00053424,2]
[312929392,1706463049072,-1566.51,0.00053424,2]
[312929393,1706463049081,-493.37452947,0.00053424,2]
[312929394,1706463049090,-928.12,0.00053424,2]
[312929395,1706463049100,-1000.0,0.00053424,2]
[312929396,1706463049109,-943.94,0.00053424,7]
[312929397,1706463049119,-1006.81,0.00053424,2]
[312929398,1706463049127,-1126.50788489,0.00053424,7]
[312929399,1706463049137,-1000.0,0.00053424,7]
[312929400,1706463049146,-500.0,0.00053424,31]
[312929401,1706463049155,-534.81,0.00053424,31]
[312929402,1706463049164,-380.73820016,0.00053424,31]
[312929403,1706463049173,-500.0,0.00053424,31]
[312929404,1706463049182,-500.0,0.00053424,31]
[312929405,1706463049191,-500.0,0.00053424,31]
[312929406,1706463049200,-500.0,0.00053424,31]
[312929407,1706463049210,-500.0,0.00053424,31]
[312929408,1706463049219,-500.0,0.00053424,31]
[312929409,1706463049228,-890.64,0.00053424,2]
[312929410,1706463049237,-500.0,0.00053424,31]
[312929411,1706463049246,-500.0,0.00053424,31]
[312929412,1706463049255,-500.0,0.00053424,31]
[312929413,1706463049265,-3178.15,0.00053424,5]
[312929414,1706463049274,-435.5645579,0.00053424,31]
[312929415,1706463049283,-500.0,0.00053424,31]
[312929416,1706463049292,-500.0,0.00053424,31]
[312929417,1706463049301,-1173.31,0.00053424,7]
[312929418,1706463049310,-500.0,0.00053424,7]
[312929419,1706463049319,-1000.0,0.00053424,20]
[312929420,1706463049328,-1000.0,0.00053424,20]
[312929421,1706463049337,-1000.0,0.00053424,20]
[312929422,1706463049346,-1000.0,0.00053424,20]
[312929423,1706463049354,-1000.0,0.00053424,20]
[312929424,1706463049363,-1000.0,0.00053424,20]
[312929425,1706463049372,-500.0,0.00053424,31]
[312929426,1706463049381,-500.0,0.00053424,31]
[312929427,1706463049391,-500.0,0.00053424,31]
[312929428,1706463049399,-500.0,0.00053424,31]
[312929429,1706463049408,-542.65,0.00053424,31]
[312929430,1706463049417,-418.75349245,0.00053424,31]
[312929431,1706463049426,-2415.22,0.00053424,5]
[312929432,1706463049436,-500.0,0.00053424,31]
[312929433,1706463049445,-4090.1,0.00053424,31]
[312929434,1706463049454,-500.0,0.00053424,31]
[312929435,1706463049463,-500.0,0.00053424,31]
[312929436,1706463049472,-500.0,0.00053424,31]
[312929437,1706463049481,-500.0,0.00053424,2]
[312929438,1706463049490,-500.0,0.00053424,31]
[312929439,1706463049499,-441.34890914,0.00053426,2]
[312929440,1706463049508,-79527.3206365,0.0005349,12]
[312929441,1706463049518,-9268.7106682,0.00053497,2]
[312929442,1706463049527,-153.07,0.000535,14]
[312929443,1706463049536,-251909.8494738,0.000535,120]
[312929444,1706463049548,-309.18,0.000535,120]
[312929445,1706463049559,-4196.6,0.000535,120]
[312929446,1706463049571,-6840.1,0.000535,120]
[312929447,1706463049582,-431.0,0.000535,120]
[312929448,1706463212645,1011.22518572,0.00022996,5]
[312929449,1706463234447,-500.0,0.00022899,2]
[312929450,1706463235661,-500.0,0.00022899,2]
[312929451,1706463236751,-500.0,0.00022899,2]
[312929452,1706463237197,-500.0,0.00022899,2]
[312929453,1706463237608,-500.0,0.00022899,2]
[312929454,1706463238035,-500.0,0.00022899,2]
[312929455,1706463238451,-139.486,0.00022899,2]
[312929456,1706463282260,360.514,0.00022881,2]
[312929457,1706463282285,500.0,0.00022881,2]
[312929458,1706463282311,139.486,0.00022881,2]
[312929459,1706463324205,360.514,0.00022785,2]
[312929460,1706463324229,500.0,0.00022785,2]
[312929461,1706463324254,339.486,0.00022785,2]
[312929462,1706463388225,160.514,0.00022671,2]
[312929463,1706463388252,239.486,0.00022671,2]
[312929501,1706464233509,-300.0,0.00023029,2]
[312929502,1706464233517,-628.53687171,0.00023128,2]
[312929503,1706464233564,-479.46312829,0.00023128,2]
[312929504,1706464233573,-250.0,0.00023129,2]
[312929505,1706464233582,-180.89026981,0.000246,2]
[312929506,1706464233620,-49.42973019,0.000246,2]
[312929507,1706464233630,-159.56177587,0.000249,2]
[312929508,1706464233639,-550.0,0.00025,3]
[312929509,1706464233649,-1587.22750165,0.00026996,2]
[312929510,1706464233660,-935.55189282,0.00026997,2]
[312929511,1706464233670,-3.075065,0.00026998,2]
[312929512,1706464233709,-199.36735492,0.00026998,2]
[312929513,1706464233718,-150.0,0.00026999,2]
[312929514,1706464233727,-1903.74995284,0.00026999,2]
[312929515,1706464233736,-600.0,0.00027,3]
[312929516,1706464233745,-157.07,0.00028177,2]
[312929517,1706464233755,-345.0,0.00028817,2]
[312929518,1706464233764,-419.33476208,0.00028836,2]
[312929519,1706464233773,-3750.0,0.000291,2]
[312929520,1706464233783,-3852.0,0.000292,2]
[312929522,1706464233792,-2000.0,0.00029443,2]
[312929524,1706464233805,-159.68,0.00029531,2]
[312929526,1706464233814,-3653.53511905,0.00029531,2]
[312929528,1706464233826,-17390.6593575,0.00029531,2]
[312929530,1706464233838,-1031.76632145,0.00029531,2]
[312929532,1706464233849,-641.78023561,0.00029531,2]
[312929534,1706464233860,-499.95,0.00029531,2]
[312929536,1706464233872,-653.000008,0.00029531,2]
[312929538,1706464233883,-29.30895839,0.00029531,2]
[312929540,1706464233892,-250.0,0.00029549,2]
[312929542,1706464233902,-200.0,0.00029593,2]
[312929544,1706464233911,-250.0,0.00029612,2]
[312929546,1706464233920,-156.69104161,0.00029699,2]
[312929549,1706464233932,-53.30895839,0.00029699,2]
[312929551,1706464233941,-494.84174762,0.00029738,2]
[312929553,1706464233950,-3496.1789278,0.00029788,2]
[312929582,1706464238507,-202.44241992,0.00025,2]
[312929584,1706464238517,-404.97,0.00028692,2]
[312929585,1706464238527,-362.4510722,0.00029788,2]
[312929586,1706464238539,-175.84884344,0.000298,2]
[312929587,1706464238548,-500.0,0.0002992,2]
[312929588,1706464238557,-200.0,0.00029948,2]
[312929589,1706464238566,-564.29768292,0.0003,2]
[312929590,1706464238579,-2435.70231708,0.0003,2]
[312929591,1706464238588,-200.0,0.0003,7]
[312929592,1706464238598,-1030.50730423,0.0003001,2]
[312929593,1706464238610,-1969.49269577,0.0003001,2]
[312929594,1706464238619,-155.0,0.00030019,4]
[312929595,1706464238628,-3000.0,0.0003002,2]
[312929596,1706464238637,-3000.0,0.0003003,2]
[312929597,1706464238646,-3000.0,0.0003004,2]
[312929598,1706464238655,-1943.41649406,0.0003005,2]
[312929599,1706464238668,-1056.58350594,0.0003005,2]
[312929600,1706464238678,-3000.0,0.0003006,2]
[312929601,1706464238687,-3000.0,0.0003007,2]
[312929602,1706464238696,-2500.0,0.0003007,2]
[312929603,1706464238706,-3000.0,0.0003008,2]
[312929604,1706464238715,-150.0,0.00030085,2]
[312929605,1706464238724,-3000.0,0.0003009,2]
[312929606,1706464238734,-168.13,0.0003009,2]
[312929607,1706464238743,-3000.0,0.000301,2]
[312929608,1706464238752,-3000.0,0.0003011,2]
[312929609,1706464238762,-964.63604295,0.00030118,4]
[312929610,1706464238771,-4494.87788226,0.00030119,4]
[312929611,1706464238783,-3000.0,0.0003012,2]
[312929612,1706464238793,-3090.0,0.00030128,4]
[312929613,1706464238802,-7195.74020548,0.00030129,2]
[312929614,1706464238811,-3000.0,0.0003013,2]
[312929615,1706464238821,-3000.0,0.0003014,2]
[312929616,1706464238830,-3000.0,0.0003015,2]
[312929617,1706464238840,-3000.0,0.0003016,2]
[312929618,1706464238850,-3000.0,0.0003017,2]
[312929619,1706464238859,-3000.0,0.0003018,2]
[312929620,1706464238869,-3000.0,0.0003019,2]
[312929621,1706464238878,-3000.0,0.000302,2]
[312929622,1706464238887,-3000.0,0.0003021,2]
[312929623,1706464238896,-3000.0,0.0003022,2]
[312929624,1706464238906,-3000.0,0.0003023,2]
[312929625,1706464238915,-3000.0,0.0003024,2]
[312929626,1706464238924,-3000.0,0.0003025,2]
[312929627,1706464238934,-3000.0,0.0003026,2]
[312929628,1706464238943,-3000.0,0.0003027,2]
[312929629,1706464238953,-3000.0,0.0003028,2]
[312929630,1706464238962,-3000.0,0.0003029,2]
[312929631,1706464238971,-4648.03,0.00030291,2]
[312929632,1706464238981,-157.79,0.00030297,2]
[312929633,1706464238990,-3000.0,0.000303,2]
[312929634,1706464239000,-4883.761427,0.0003031,2]
[312929635,1706464239009,-1852.42,0.00030312,2]
[312929636,1706464239019,-1000.0,0.00030461,2]
[312929637,1706464239031,-157.07,0.00030567,2]
[312929638,1706464239040,-2705.0,0.00030816,2]
[312929639,1706464239049,-183.33,0.00030824,120]
[312929640,1706464239059,-275.06,0.00030839,2]
[312929641,1706464239069,-3150.33,0.00030951,2]
[312929642,1706464239079,-375.20474217,0.00032,2]
[312929643,1706464239088,-1934.0,0.00032286,2]
[312929644,1706464239098,-210.0,0.00032286,2]
[312929645,1706464239107,-190.21,0.00032403,2]
[312929646,1706464239117,-202.4125195,0.000325,2]